bitfinex-derivatives/quotes_BNBF0:USTF0_20250715
["timestamp","ask_amount","ask_price","bid_price","bid_amount"]
[1752609453330,0.97194843,685.29,684.79,0.97703518]
[1752609453538,0.97194843,685.3,684.78,0.97703518]
[1752609453835,0.97194843,685.31,684.77,0.97703518]
[1752609454333,0.97194843,685.27,684.71,0.97703518]
[1752609454831,0.97194843,685.24,684.68,0.97703518]
[1752609455533,0.97194843,685.24,684.67,0.97703518]
[1752609455730,0.97194843,685.21,684.63,0.97703518]
[1752609455930,0.97194843,685.21,684.64,0.97703518]
[1752609456129,0.97194843,685.21,684.63,0.97703518]
[1752609456334,0.97194843,685.22,684.63,0.97703518]
[1752609457436,0.97194843,685.22,684.62,0.97703518]
[1752609458534,0.97194843,685.23,684.62,0.97703518]
[1752609459435,0.97194843,685.24,684.61,0.97703518]
[1752609460134,0.97194843,685.26,684.59,0.97703518]
[1752609460333,0.97194843,685.27,684.59,0.97703518]
[1752609460737,0.97194843,685.26,684.59,0.97703518]
[1752609461340,0.97194843,685.27,684.58,0.97703518]
[1752609462143,0.97194843,685.24,684.55,0.97703518]
[1752609462340,0.97194843,685.25,684.55,0.97703518]
[1752609463542,0.97194843,685.25,684.54,0.97703518]
[1752609464037,0.97194843,685.24,684.54,0.97703518]
[1752609464542,0.97194843,685.25,684.54,0.97703518]
[1752609465143,0.97194843,685.28,684.58,0.97703518]
[1752609465339,0.97194843,685.28,684.57,0.97703518]
[1752609465540,0.97194843,685.29,684.57,0.97703518]
[1752609466443,0.97194843,685.3,684.57,0.97703518]
[1752609466640,0.97194843,685.27,684.6,0.97703518]
[1752609466839,0.97194843,685.32,684.64,0.97703518]
[1752609467244,0.97194843,685.3,684.65,0.97703518]
[1752609467747,0.97194843,685.34,684.69,0.97703518]
[1752609468044,0.97194843,685.33,684.69,0.97703518]
[1752609468247,0.97194843,685.34,684.69,0.97703518]
[1752609469449,0.97194843,685.34,684.7,0.97703518]
[1752609469748,0.97194843,685.35,684.69,0.97703518]
[1752609470047,0.97194843,685.34,684.69,0.97703518]
[1752609470742,0.97194843,685.34,684.68,0.97703518]
[1752609471549,0.97194843,685.33,684.68,0.97703518]
[1752609472247,0.97194843,685.34,684.68,0.97703518]
[1752609472543,0.97194843,685.33,684.68,0.97703518]
[1752609473147,0.97194843,685.34,684.67,0.97703518]
[1752609474346,0.97194843,685.34,684.68,0.97703518]
[1752609474545,0.97194843,685.33,684.68,0.97703518]
[1752609475248,0.97194843,685.34,684.68,0.97703518]
[1752609475445,0.97194843,685.33,684.68,0.97703518]
[1752609476245,0.97194843,685.34,684.68,0.97703518]
[1752609476450,0.97194843,685.33,684.68,0.97703518]
[1752609479653,0.97194843,685.32,684.69,0.97703518]
[1752609480949,0.97194843,685.3,684.63,0.97703518]
[1752609481153,0.97194843,685.26,684.59,0.97703518]
[1752609481656,0.97194843,685.23,684.58,0.97703518]
[1752609481852,0.97194843,685.2,684.55,0.97703518]
[1752609482254,0.97194843,685.18,684.56,0.97703518]
[1752609484156,0.97194843,685.18,684.55,0.97703518]
[1752609484451,0.97194843,685.18,684.56,0.97703518]
[1752609484657,0.97194843,685.17,684.55,0.97703518]
[1752609484857,0.97194843,685.18,684.55,0.97703518]
[1752609485154,0.97194843,685.17,684.53,0.97703518]
[1752609485355,0.97194843,685.16,684.53,0.97703518]
[1752609485553,0.97194843,685.16,684.41,1.2978208]
[1752609485554,0.97194843,685.14,684.5,0.97703518]
[1752609485756,0.97194843,685.15,684.49,0.97703518]
[1752609485952,0.97194843,685.17,684.47,0.97703518]
[1752609486253,0.97194843,685.15,684.44,0.97703518]
[1752609486452,0.97194843,685.08,684.38,0.97703518]
[1752609486658,0.97194843,685.07,684.37,0.97703518]
[1752609487156,0.97194843,685.08,684.36,0.97703518]
[1752609487553,0.97194843,685.08,684.37,0.97703518]
[1752609488156,0.97194843,685.09,684.36,0.97703518]
[1752609489161,0.97194843,685.1,684.35,0.97703518]
[1752609489456,0.97194843,685.09,684.36,0.97703518]
[1752609490164,0.97194843,685.1,684.35,0.97703518]
[1752609490958,0.97194843,685.12,684.34,0.97703518]
[1752609491262,0.97194843,685.12,684.33,0.97703518]
[1752609491562,0.97194843,685.13,684.34,0.97703518]
[1752609491761,0.97194843,685.13,684.33,0.97703518]
[1752609491963,0.97194843,685.17,684.31,0.97703518]
[1752609493263,0.97194843,685.17,684.3,0.97703518]
[1752609494259,0.97194843,685.18,684.3,0.97703518]
[1752609494664,0.97194843,685.17,684.3,0.97703518]
[1752609494964,0.97194843,685.17,684.13,1.2978208]
[1752609494965,0.97194843,685.19,684.32,0.97703518]
[1752609495164,0.97194843,685.2,684.32,0.97703518]
[1752609495565,0.97194843,685.21,684.31,0.97703518]
[1752609496162,0.97194843,685.2,684.32,0.97703518]
[1752609496466,0.97194843,685.21,684.33,0.97703518]
[1752609496666,0.97194843,685.13,684.38,0.97703518]
[1752609497165,0.97194843,685.14,684.37,0.97703518]
[1752609498167,0.97194843,685.15,684.37,0.97703518]
[1752609498871,0.97194843,685.17,684.4,0.97703518]
[1752609499070,0.97194843,685.17,684.39,0.97703518]
[1752609499270,0.97194843,685.22,684.45,0.97703518]
[1752609499572,0.97194843,685.27,684.5,0.97703518]
[1752609500269,0.97194843,685.28,684.51,0.97703518]
[1752609500468,0.97194843,685.29,684.51,0.97703518]
[1752609501169,0.97194843,685.28,684.51,0.97703518]
[1752609502472,0.97194843,685.28,684.52,0.97703518]
[1752609504173,0.97194843,685.27,684.52,0.97703518]
[1752609504976,0.97194843,685.29,684.55,0.97703518]
[1752609506472,0.97194843,685.29,684.42,1.2978208]
[1752609506473,0.97194843,685.28,684.56,0.97703518]
[1752609507078,0.97194843,685.26,684.57,0.97703518]
[1752609510381,0.97194843,685.25,684.58,0.97703518]
[1752609510982,0.97194843,685.24,684.58,0.97703518]
[1752609511485,0.97194843,685.24,684.59,0.97703518]
[1752609512283,0.97194843,685.27,684.57,0.97703518]
[1752609512482,0.97194843,685.26,684.57,0.97703518]
[1752609514183,0.97194843,685.26,684.58,0.97703518]
[1752609515486,0.97194843,685.25,684.57,0.97703518]
[1752609517189,0.97194843,685.28,684.55,0.97703518]
[1752609517888,0.97194843,685.29,684.56,0.97703518]
[1752609519806,0.97194843,685.3,684.55,0.97703518]
[1752609519995,0.97194843,685.27,684.53,0.97703518]
[1752609520201,0.97194843,685.26,684.52,0.97703518]
[1752609520401,0.97194843,685.25,684.51,0.97703518]
[1752609520602,0.97194843,685.26,684.51,0.97703518]
[1752609520903,0.97194843,685.25,684.5,0.97703518]
[1752609521198,0.97194843,685.26,684.5,0.97703518]
[1752609522103,0.97194843,685.25,684.5,0.97703518]
[1752609523005,0.97194843,685.21,684.45,0.97703518]
[1752609523603,0.97194843,685.21,684.46,0.97703518]
[1752609524205,0.97194843,685.22,684.45,0.97703518]
[1752609524408,0.97194843,685.21,684.46,0.97703518]
[1752609524609,0.97194843,685.21,684.47,0.97703518]
[1752609524904,0.97194843,685.23,684.49,0.97703518]
[1752609527218,0.97194843,685.22,684.5,0.97703518]
[1752609529309,0.97194843,685.21,684.5,0.97703518]
[1752609529514,0.97194843,685.2,684.51,0.97703518]
[1752609530614,0.97194843,685.19,684.51,0.97703518]
[1752609531108,0.97194843,685.19,684.52,0.97703518]
[1752609532312,0.97194843,685.18,684.53,0.97703518]
[1752609533710,0.97194843,685.17,684.54,0.97703518]
[1752609535212,0.97194843,685.16,684.55,0.97703518]
[1752609537014,0.97194843,685.22,684.57,0.97703518]
[1752609537417,0.97194843,685.22,684.58,0.97703518]
[1752609538420,0.97194843,685.25,684.6,0.97703518]
[1752609539517,0.97194843,685.24,684.6,0.97703518]
[1752609539722,0.97194843,685.24,684.59,0.97703518]
[1752609541316,0.97194843,685.23,684.58,0.97703518]
[1752609541622,0.97194843,685.23,684.59,0.97703518]
[1752609542318,0.97194843,685.23,684.58,0.97703518]
[1752609543222,0.97194843,685.15,684.52,0.97703518]
[1752609543423,0.25392193,685.7,684.37,1.2978208]
[1752609543424,0.97194843,685.14,684.51,0.97703518]
[1752609543623,0.97194843,685.13,684.51,0.97703518]
[1752609544218,0.97194843,685.14,684.51,0.97703518]
[1752609544423,0.97194843,685.13,684.51,0.97703518]
[1752609544624,0.97194843,685.14,684.51,0.97703518]
[1752609544824,0.97194843,685.13,684.51,0.97703518]
[1752609545226,0.97194843,685.14,684.51,0.97703518]
[1752609545423,0.97194843,685.13,684.51,0.97703518]
[1752609545822,0.97194843,685.14,684.51,0.97703518]
[1752609546325,0.97194843,685.13,684.51,0.97703518]
[1752609546726,0.97194843,685.12,684.52,0.97703518]
[1752609548128,0.97194843,685.11,684.52,0.97703518]
[1752609548326,0.97194843,685.09,684.53,0.97703518]
[1752609549029,0.97194843,685.1,684.54,0.97703518]
[1752609549734,0.97194843,685.09,684.55,0.97703518]
[1752609550026,0.97194843,685.11,684.58,0.97703518]
[1752609550635,0.97194843,685.1,684.58,0.97703518]
[1752609550831,0.97194843,685.11,684.57,0.97703518]
[1752609551128,0.97194843,685.1,684.58,0.97703518]
[1752609552037,0.97194843,685.11,684.57,0.97703518]
[1752609552237,0.97194843,685.1,684.58,0.97703518]
[1752609553032,0.97194843,685.09,684.58,0.97703518]
[1752609553336,0.97194843,685.08,684.58,0.97703518]
[1752609554141,0.97194843,685.07,684.59,0.97703518]
[1752609554439,0.97194843,685.07,684.58,0.97703518]
[1752609555142,0.97194843,685.07,684.59,0.97703518]
[1752609555335,0.97194843,685.06,684.59,0.97703518]
[1752609556638,1.2898949,685.17,684.48,1.2978208]
[1752609556940,0.97769185,685.07,684.59,0.98404232]
[1752609559343,0.97769185,685.07,684.6,0.98404232]
[1752609561245,0.97769185,685.09,684.61,0.98404232]
[1752609561445,0.97769185,685.09,684.62,0.98404232]
[1752609561647,0.97769185,685.09,684.61,0.98404232]
[1752609561842,0.97769185,685.09,684.62,0.98404232]
[1752609562340,0.97769185,685.12,684.6,0.98404232]
[1752609562648,0.97769185,685.11,684.6,0.98404232]
[1752609563139,0.97769185,685.16,684.65,0.98404232]
[1752609563739,0.97769185,685.17,684.65,0.98404232]
[1752609564342,0.97769185,685.18,684.66,0.98404232]
[1752609564542,0.97769185,685.19,684.67,0.98404232]
[1752609565542,0.97769185,685.2,684.68,0.98404232]
[1752609566544,0.97769185,685.2,684.67,0.98404232]
[1752609566741,0.25392193,685.7,684.68,0.98404232]
[1752609566742,0.97769185,685.19,684.68,0.98404232]
[1752609569245,0.97769185,685.19,684.67,0.98404232]
[1752609569842,0.97769185,685.17,684.65,0.98404232]
[1752609570441,0.97769185,685.18,684.64,0.98404232]
[1752609570644,0.97769185,685.17,684.63,0.98404232]
[1752609571346,0.97769185,685.18,684.64,0.98404232]
[1752609572344,0.97769185,685.16,684.65,0.98404232]
[1752609573546,0.97769185,685.15,684.65,0.98404232]
[1752609575554,0.97769185,685.15,684.64,0.98404232]
[1752609575752,0.97769185,685.08,684.56,0.98404232]
[1752609576252,0.97769185,685.09,684.56,0.98404232]
[1752609576461,0.97769185,685.08,684.55,0.98404232]
[1752609576651,0.25392193,685.7,684.53,0.98404232]
[1752609576652,0.97769185,685.06,684.53,0.98404232]
[1752609576856,0.97769185,685.04,684.51,0.98404232]
[1752609577252,0.97769185,685.02,684.53,0.98404232]
[1752609577555,0.97769185,685.0,684.49,0.98404232]
[1752609578057,0.97769185,685.0,684.5,0.98404232]
[1752609578257,0.97769185,685.0,684.49,0.98404232]
[1752609579460,0.97769185,685.01,684.49,0.98404232]
[1752609580260,0.97769185,685.01,684.48,0.98404232]
[1752609581160,0.97769185,684.99,684.49,0.98404232]
[1752609581856,0.97769185,684.95,684.45,0.98404232]
[1752609582160,0.97769185,684.95,684.44,0.98404232]
[1752609583258,1.9348424,685.19,684.44,0.98404232]
[1752609583259,0.97769185,684.96,684.44,0.98404232]
[1752609584261,0.97769185,684.96,684.43,0.98404232]
[1752609585266,0.97769185,684.97,684.43,0.98404232]
[1752609586165,0.97769185,684.96,684.43,0.98404232]
[1752609586568,0.97769185,684.97,684.42,0.98404232]
[1752609586965,0.97769185,684.97,684.43,0.98404232]
[1752609587262,0.97769185,685.02,684.39,0.98404232]
[1752609590367,0.97769185,685.03,684.38,0.98404232]
[1752609591167,0.97769185,685.02,684.39,0.98404232]
[1752609591364,0.97769185,685.02,684.38,0.98404232]
[1752609591771,0.97769185,685.03,684.38,0.98404232]
[1752609591970,0.97769185,685.03,684.24,0.98404232]
[1752609592168,0.97769185,685.03,684.23,0.98404232]
[1752609593274,0.97769185,685.03,684.21,0.98404232]
[1752609594476,0.97769185,685.04,684.21,0.98404232]
[1752609595177,0.97769185,685.05,684.21,0.98404232]
[1752609596182,0.97769185,685.06,684.2,1.23806434]
[1752609596972,0.97769185,685.05,684.2,1.23806434]
[1752609597176,0.97769185,685.05,684.21,0.98404232]
[1752609597373,0.97769185,685.05,684.2,1.23806434]
[1752609597880,0.97769185,685.08,684.23,0.98404232]
[1752609598173,0.97769185,685.12,684.28,0.98404232]
[1752609598476,0.97769185,685.13,684.28,0.98404232]
[1752609598677,0.97769185,685.13,684.29,0.98404232]
[1752609599180,0.97769185,685.11,684.3,0.98404232]
[1752609599575,0.97769185,685.16,684.35,0.98404232]
[1752609599780,0.97769185,685.12,684.38,0.98404232]
[1752609599977,0.97769185,685.12,684.37,0.98404232]
[1752609600182,0.97769185,685.12,684.38,0.98404232]
[1752609600979,0.97769185,685.08,684.4,0.98404232]
[1752609602179,0.97769185,685.05,684.37,0.98404232]
[1752609602379,0.97769185,685.05,684.36,0.98404232]
[1752609602775,0.25392193,685.7,684.2,0.25402202]
[1752609602776,0.97769185,685.04,684.37,0.98404232]
[1752609602985,0.97769185,685.08,684.34,0.98404232]
[1752609603281,0.97769185,685.1,684.36,0.98404232]
[1752609603776,0.97769185,685.09,684.36,0.98404232]
[1752609603986,0.97769185,685.1,684.36,0.98404232]
[1752609604180,0.97769185,685.12,684.39,0.98404232]
[1752609604381,0.97769185,685.16,684.43,0.98404232]
[1752609604678,0.97769185,685.14,684.45,0.98404232]
[1752609604882,0.97769185,685.17,684.49,0.98404232]
[1752609605080,0.97769185,685.16,684.49,0.98404232]
[1752609605385,0.97769185,685.22,684.54,0.98404232]
[1752609605582,0.97769185,685.23,684.55,0.98404232]
[1752609605982,0.97769185,685.22,684.54,0.98404232]
[1752609606187,0.97769185,685.23,684.55,0.98404232]
[1752609607780,0.97769185,685.25,684.56,0.98404232]
[1752609608279,0.97769185,685.37,684.58,0.98404232]
[1752609609080,0.97769185,685.37,684.59,0.98404232]
[1752609609280,0.97769185,685.37,684.58,0.98404232]
[1752609610289,0.97769185,685.38,684.58,0.98404232]
[1752609610586,0.97769185,685.39,684.59,0.98404232]
[1752609611283,0.97769185,685.4,684.59,0.98404232]
[1752609612182,0.97769185,685.4,684.58,0.98404232]
[1752609612782,0.97769185,685.41,684.59,0.98404232]
[1752609613183,0.97769185,685.41,684.58,0.98404232]
[1752609613484,0.97769185,685.39,684.64,0.98404232]
[1752609613683,0.25392193,685.7,684.63,0.98404232]
[1752609613684,0.97769185,685.38,684.63,0.98404232]
[1752609614291,0.97769185,685.4,684.62,0.98404232]
[1752609615286,0.97769185,685.39,684.61,0.98404232]
[1752609616289,0.97769185,685.4,684.6,0.98404232]
[1752609616491,0.97769185,685.4,684.61,0.98404232]
[1752609617190,0.97769185,685.41,684.6,0.98404232]
[1752609617396,0.97769185,685.4,684.6,0.98404232]
[1752609618196,0.97769185,685.42,684.59,0.98404232]
[1752609618396,0.97769185,685.41,684.59,0.98404232]
[1752609618598,0.97769185,685.42,684.6,0.98404232]
[1752609619294,0.97769185,685.49,684.49,0.98404232]
[1752609619493,0.97769185,685.5,684.5,0.98404232]
[1752609620401,0.2540044,685.38,684.5,0.98404232]
[1752609620600,0.2540044,685.38,684.49,0.98404232]
[1752609621097,0.2540044,685.38,684.3,1.2978208]
[1752609621098,0.2540044,685.38,684.5,0.98404232]
[1752609621302,0.2540044,685.38,684.49,0.98404232]
[1752609622001,0.2540044,685.38,684.5,0.98404232]
[1752609622205,0.2540044,685.38,684.49,0.98404232]
[1752609626303,0.2540044,685.38,684.48,0.98404232]
[1752609626804,0.2540044,685.38,684.49,0.98404232]
[1752609627102,0.2540044,685.38,684.5,0.98404232]
[1752609628205,0.2540044,685.38,684.49,0.98404232]
[1752609629202,0.2540044,685.38,684.53,0.98404232]
[1752609629408,0.2540044,685.38,684.54,0.98404232]
[1752609629615,0.2540044,685.38,684.55,0.98404232]
[1752609630213,0.2540044,685.38,684.54,0.98404232]
[1752609630413,0.2540044,685.38,684.55,0.98404232]
[1752609630602,0.97769185,685.42,684.55,0.98404232]
[1752609630807,0.97769185,685.43,684.56,0.98404232]
[1752609631108,0.97769185,685.44,684.57,0.98404232]
[1752609631302,0.97769185,685.44,684.58,0.98404232]
[1752609631503,0.97769185,685.43,684.58,0.98404232]
[1752609631709,1.23168327,685.47,684.62,0.98404232]
[1752609631905,0.97769185,685.45,684.64,0.98404232]
[1752609632208,0.97769185,685.46,684.63,0.98404232]
[1752609632704,1.23168327,685.47,684.63,0.98404232]
[1752609633004,0.97769185,685.46,684.64,0.98404232]
[1752609633205,0.97769185,685.46,684.63,0.98404232]
[1752609633405,1.23168327,685.47,684.63,0.98404232]
[1752609633910,1.23168327,685.47,684.62,0.98404232]
[1752609634307,0.25399142,685.47,684.62,0.98404232]
[1752609635206,1.23168327,685.47,684.62,0.98404232]
[1752609635810,0.25399142,685.47,684.61,0.98404232]
[1752609637114,0.25399142,685.47,684.6,0.98404232]
[1752609637410,0.25399142,685.47,684.59,0.98404232]
[1752609640215,0.25399142,685.47,684.57,0.98404232]
[1752609640814,0.25399142,685.47,684.58,0.98404232]
[1752609642510,0.97769185,685.54,684.58,0.98404232]
[1752609643016,0.97769185,685.52,684.59,0.98404232]
[1752609645915,0.97769185,685.51,684.59,0.98404232]
[1752609646218,0.97769185,685.51,684.56,0.98404232]
[1752609647315,0.97769185,685.51,684.57,0.98404232]
[1752609648319,0.97769185,685.5,684.57,0.98404232]
[1752609649414,0.97769185,685.5,684.58,0.98404232]
[1752609650116,0.97769185,685.48,684.59,0.98404232]
[1752609650316,0.97769185,685.47,684.59,0.98404232]
[1752609650814,0.97769185,685.47,684.6,0.98404232]
[1752609652320,0.97769185,685.46,684.61,0.98404232]
[1752609652816,0.97769185,685.45,684.61,0.98404232]
[1752609653217,0.97769185,685.44,684.62,0.98404232]
[1752609654217,0.97769185,685.43,684.63,0.98404232]
[1752609655423,0.97769185,685.42,684.64,0.98404232]
[1752609655923,0.97769185,685.4,684.65,0.98404232]
[1752609656423,0.97769185,685.39,684.67,0.98404232]
[1752609656623,0.97769185,685.38,684.67,0.98404232]
[1752609656820,0.97769185,685.39,684.67,0.98404232]
[1752609657524,0.97769185,685.41,684.55,0.98404232]
[1752609657827,0.97769185,685.41,684.54,0.98404232]
[1752609658020,0.97769185,685.41,684.55,0.98404232]
[1752609658327,0.25396177,685.55,684.56,0.98404232]
[1752609658328,0.97769185,685.39,684.56,0.98404232]
[1752609658524,0.97769185,685.37,684.56,0.98404232]
[1752609658724,0.97769185,685.29,684.61,0.98404232]
[1752609658924,0.97769185,685.28,684.62,0.98404232]
[1752609659425,0.97769185,685.27,684.63,0.98404232]
[1752609659625,0.97769185,685.26,684.63,0.98404232]
[1752609660624,0.97769185,685.31,684.6,0.98404232]
[1752609660828,0.97769185,685.33,684.62,0.98404232]
[1752609661429,0.97769185,685.33,684.2,0.25402202]
[1752609661430,0.97769185,685.31,684.64,0.98404232]
[1752609661724,0.97769185,685.32,684.64,0.98404232]
[1752609662228,0.97769185,685.3,684.66,0.98404232]
[1752609663127,1.2898949,685.46,684.5,1.2978208]
[1752609663331,0.25396177,685.55,684.64,0.98341233]
[1752609663332,0.97758633,685.34,684.64,0.98341233]
[1752609663628,0.97758633,685.17,684.49,0.98341233]
[1752609664232,0.97758633,685.16,684.5,0.98341233]
[1752609664428,0.97758633,685.15,684.49,0.98341233]
[1752609665340,0.97758633,685.15,684.48,0.98341233]
[1752609665833,0.97758633,685.1,684.52,0.98341233]
[1752609666228,0.97758633,685.12,684.5,0.98341233]
[1752609667231,0.97758633,685.13,684.5,0.98341233]
[1752609667632,0.97758633,685.12,684.5,0.98341233]
[1752609668234,0.97758633,685.13,684.49,0.98341233]
[1752609669130,0.97758633,685.14,684.48,0.98341233]
[1752609670429,0.97758633,685.14,684.47,0.98341233]
[1752609670733,0.97758633,685.15,684.47,0.98341233]
[1752609671336,0.97758633,685.16,684.47,0.98341233]
[1752609671834,0.97758633,685.16,684.46,0.98341233]
[1752609672034,0.97758633,685.15,684.47,0.98341233]
[1752609672334,0.97758633,685.16,684.46,0.98341233]
[1752609672830,0.97758633,685.15,684.46,0.98341233]
[1752609673237,0.97758633,685.16,684.46,0.98341233]
[1752609673634,0.97758633,685.16,684.45,0.98341233]
[1752609673932,0.97758633,685.16,684.46,0.98341233]
[1752609674130,0.97758633,685.17,684.45,0.98341233]
[1752609674633,0.97758633,685.17,684.44,0.98341233]
[1752609675536,0.97758633,685.18,684.43,0.98341233]
[1752609675736,0.97758633,685.17,684.43,0.98341233]
[1752609676035,0.97758633,685.17,684.2,0.25402202]
[1752609676036,0.97758633,685.16,684.44,0.98341233]
[1752609676235,0.97758633,685.17,684.44,0.98341233]
[1752609677033,1.2898949,685.32,684.44,0.98341233]
[1752609677034,0.97758633,685.16,684.44,0.98341233]
[1752609677232,0.97758633,685.17,684.43,0.98341233]
[1752609678633,0.97758633,685.16,684.42,0.98341233]
[1752609678838,0.97758633,685.15,684.42,0.98341233]
[1752609679236,0.97758633,685.15,684.41,0.98341233]
[1752609679432,0.97758633,685.1,684.36,0.98341233]
[1752609680235,0.97758633,685.11,684.36,0.98341233]
[1752609680433,0.97758633,685.1,684.36,0.98341233]
[1752609681234,0.97758633,685.11,684.36,0.98341233]
[1752609681740,0.97758633,685.1,684.36,0.98341233]
[1752609682333,0.97758633,685.11,684.36,0.98341233]
[1752609683333,0.97758633,685.11,684.35,0.98341233]
[1752609683538,0.97758633,685.1,684.36,0.98341233]
[1752609684632,0.97758633,685.1,684.37,0.98341233]
[1752609685241,0.97758633,685.1,684.36,0.98341233]
[1752609685438,0.97758633,685.07,684.38,0.98341233]
[1752609685844,0.97758633,685.16,684.41,0.98341233]
[1752609686140,0.97758633,685.18,684.43,0.98341233]
[1752609686342,0.97758633,685.19,684.43,0.98341233]
[1752609686643,0.97758633,685.2,684.42,0.98341233]
[1752609687943,0.97758633,685.21,684.42,0.98341233]
[1752609688745,0.97758633,685.2,684.41,0.98341233]
[1752609691246,0.97758633,685.23,684.39,0.98341233]
[1752609692943,0.97758633,685.2,684.37,0.98341233]
[1752609693940,0.97758633,685.2,684.31,0.98341233]
[1752609694144,0.97758633,685.15,684.31,0.98341233]
[1752609696547,0.97758633,685.14,684.32,0.98341233]
[1752609698748,0.97758633,685.15,684.33,0.98341233]
[1752609698948,0.97758633,685.16,684.34,0.98341233]
[1752609699148,0.97758633,685.17,684.35,0.98341233]
[1752609699348,0.97758633,685.21,684.39,0.98341233]
[1752609700245,0.97758633,685.21,684.4,0.98341233]
[1752609701051,0.97758633,685.15,684.44,0.98341233]
[1752609701351,0.97758633,685.18,684.48,0.98341233]
[1752609701746,0.97758633,685.18,684.37,1.2978208]
[1752609701747,0.97758633,685.17,684.49,0.98341233]
[1752609702247,0.97758633,685.16,684.49,0.98341233]
[1752609703747,0.97758633,685.15,684.49,0.98341233]
[1752609705553,0.97758633,685.16,684.5,0.98341233]
[1752609706250,0.97758633,685.15,684.5,0.98341233]
[1752609707251,0.97758633,685.19,684.47,0.98341233]
[1752609707655,0.97758633,685.18,684.47,0.98341233]
[1752609708354,0.97758633,685.12,684.41,0.98341233]
[1752609709259,0.97758633,685.12,684.42,0.98341233]
[1752609709556,0.97758633,685.1,684.39,0.98341233]
[1752609710361,0.97758633,685.09,684.4,0.98341233]
[1752609711563,0.97758633,685.1,684.4,0.98341233]
[1752609712159,0.97758633,685.1,684.41,0.98341233]
[1752609712357,0.97758633,685.09,684.4,0.98341233]
[1752609713264,0.97758633,685.09,684.41,0.98341233]
[1752609713759,0.97758633,685.07,684.42,0.98341233]
[1752609714361,0.97758633,685.06,684.43,0.98341233]
[1752609715167,0.97758633,685.06,684.44,0.98341233]
[1752609716163,0.97758633,685.05,684.45,0.98341233]
[1752609716361,0.97758633,685.07,684.46,0.98341233]
[1752609717268,0.97758633,685.06,684.47,0.98341233]
[1752609718369,0.97758633,685.05,684.48,0.98341233]
[1752609718571,0.97758633,685.04,684.49,0.98341233]
[1752609720669,0.97758633,685.06,684.51,0.98341233]
[1752609721070,0.97758633,685.06,684.52,0.98341233]
[1752609722272,0.97758633,685.05,684.53,0.98341233]
[1752609723269,0.97758633,685.04,684.54,0.98341233]
[1752609723573,0.97758633,685.01,684.56,0.98341233]
[1752609724773,0.97758633,685.02,684.56,0.98341233]
[1752609725471,0.97758633,685.01,684.56,0.98341233]
[1752609725771,0.97758633,685.04,684.56,0.98341233]
[1752609726070,0.97758633,685.05,684.59,0.98341233]
[1752609726269,0.97758633,685.04,684.59,0.98341233]
[1752609727475,0.97758633,685.04,684.6,0.98341233]
[1752609729679,0.97758633,685.05,684.61,0.98341233]
[1752609729870,0.97758633,685.07,684.59,0.98341233]
[1752609730676,0.97758633,685.08,684.59,0.98341233]
[1752609732272,0.97758633,685.08,684.58,0.98341233]
[1752609732977,0.97758633,685.09,684.58,0.98341233]
[1752609735180,0.97758633,685.1,684.58,0.98341233]
[1752609735376,0.97758633,685.09,684.58,0.98341233]
[1752609736580,0.97758633,685.1,684.57,0.98341233]
[1752609737481,0.97758633,685.11,684.57,0.98341233]
[1752609739579,0.97758633,685.14,684.55,0.98341233]
[1752609739778,0.97758633,685.13,684.55,0.98341233]
[1752609742179,0.97758633,685.12,684.56,0.98341233]
[1752609742378,0.97758633,685.15,684.59,0.98341233]
[1752609744380,0.97758633,685.16,684.58,0.98341233]
[1752609744886,0.97758633,685.17,684.59,0.98341233]
[1752609745083,0.97758633,685.12,684.62,0.98341233]
[1752609745482,0.97758633,685.13,684.61,0.98341233]
[1752609746587,3.2247374,685.93,684.38,0.2540452]
[1752609746588,0.97758633,685.18,684.58,0.98341233]
[1752609746782,0.97758633,685.23,684.62,0.98341233]
[1752609746986,0.97758633,685.26,684.65,0.98341233]
[1752609747187,0.97758633,685.3,684.69,0.98341233]
[1752609747383,0.97758633,685.32,684.69,0.98341233]
[1752609747687,0.97758633,685.32,684.7,0.98341233]
[1752609747987,0.97758633,685.35,684.73,0.98341233]
[1752609748186,1.2898949,685.51,684.57,1.2978208]
[1752609748387,0.97785172,685.36,684.71,0.98337138]
[1752609748983,0.97785172,685.41,684.76,0.98337138]
[1752609749188,0.97785172,685.45,684.8,0.98337138]
[1752609749384,0.97785172,685.51,684.82,0.98337138]
[1752609750284,0.97785172,685.53,684.8,0.98337138]
[1752609751388,0.97785172,685.55,684.78,0.98337138]
[1752609752288,0.97785172,685.51,684.8,0.98337138]
[1752609752991,0.97785172,685.51,684.67,1.2978208]
[1752609752992,0.97785172,685.5,684.79,0.98337138]
[1752609753188,0.97785172,685.5,684.8,0.98337138]
[1752609753391,0.97785172,685.52,684.79,0.98337138]
[1752609754493,0.97785172,685.53,684.78,0.98337138]
[1752609755487,0.97785172,685.56,684.74,0.98337138]
[1752609755691,0.97785172,685.53,684.71,0.98337138]
[1752609756288,0.97785172,685.52,684.71,0.98337138]
[1752609756992,0.97785172,685.53,684.72,0.98337138]
[1752609757695,0.97785172,685.53,684.71,0.98337138]
[1752609758190,0.97785172,685.53,684.72,0.98337138]
[1752609758394,0.97785172,685.54,684.71,0.98337138]
[1752609759292,0.97785172,685.54,684.67,0.98337138]
[1752609759593,0.97785172,685.6,684.67,0.98337138]
[1752609760395,0.97785172,685.61,684.67,0.98337138]